fUST/lending_fUST_20260115
["ID","MTS","AMOUNT","RATE_DAILY","PERIOD"]
[401968622,1768427446224,-200.0,0.00016438,2]
[401968623,1768427446234,-164.26686219,0.00016438,2]
[401968624,1768427446242,-3000.0,0.00016438,2]
[401968625,1768427446252,-1044.67516775,0.00016438,2]
[401968626,1768427446262,-3000.0,0.00016438,2]
[401968627,1768427446272,-3000.0,0.00016438,2]
[401968628,1768427446282,-3000.0,0.00016438,2]
[401968629,1768427446292,-1319.68437302,0.00016438,2]
[401968631,1768427446302,-260.29560408,0.00016438,2]
[401968632,1768427446311,-200.0,0.00016473,2]
[401968633,1768427446322,-795.987765,0.0001656,2]
[401968634,1768427446332,-795.987765,0.0001656,2]
[401968635,1768427446344,-795.987765,0.0001656,2]
[401968636,1768427446354,-795.987765,0.0001656,2]
[401968638,1768427446363,-3500.0,0.0001656,2]
[401968639,1768427446372,-3500.0,0.0001656,2]
[401968640,1768427446382,-3500.0,0.0001656,2]
[401968641,1768427446393,-3500.0,0.0001656,2]
[401968642,1768427446403,-3500.0,0.0001656,2]
[401968643,1768427446412,-3500.0,0.0001656,2]
[401968644,1768427446421,-3500.0,0.0001656,2]
[401968645,1768427446430,-1000.0,0.00016601,2]
[401968646,1768427446440,-77965.179701,0.00016601,7]
[401968647,1768427446448,-58242.557665,0.00016601,7]
[401968648,1768427446458,-11694.776956,0.00016601,7]
[401968649,1768427446467,-10945.40487951,0.00016839,2]
[401968650,1768427446476,-170.153513,0.00016871,7]
[401968651,1768427446486,-2100.0,0.0001696,2]
[401968652,1768427446494,-2087.94374426,0.00016986,2]
[401968653,1768427446504,-270.0,0.00016986,2]
[401968654,1768427446514,-3500.0,0.00016986,2]
[401968655,1768427446523,-3500.0,0.00016986,2]
[401968656,1768427446532,-3500.0,0.00016986,2]
[401968658,1768427446542,-4000.0,0.00017108,2]
[401968660,1768427446551,-2892.75982988,0.00017108,2]
[401968662,1768427446561,-4000.0,0.00017108,2]
[401968663,1768427446572,-2917.48910491,0.00017108,2]
[401968664,1768427446582,-4000.0,0.00017108,2]
[401968665,1768427446592,-4000.0,0.00017108,2]
[401968666,1768427446602,-4000.0,0.00017108,2]
[401968667,1768427446612,-2400.0,0.0001726,2]
[401968668,1768427446624,-5000.0,0.00017412,2]
[401968669,1768427446634,-1613.0,0.00017494,2]
[401968670,1768427446643,-2400.0,0.00017508,2]
[401968671,1768427446653,-151.0,0.00017534,2]
[401968672,1768427446663,-151.0,0.00017534,2]
[401968673,1768427446672,-151.0,0.00017534,2]
[401968674,1768427446683,-186.591978,0.00017534,2]
[401968675,1768427446693,-186.591978,0.00017534,2]
[401968676,1768427446703,-186.591978,0.00017534,2]
[401968677,1768427446713,-186.591978,0.00017534,2]
[401968678,1768427446723,-400.0,0.00017534,2]
[401968679,1768427446734,-174.48080933,0.00017534,2]
[401968680,1768427446743,-4000.0,0.00017534,2]
[401968681,1768427446753,-4000.0,0.00017534,2]
[401968682,1768427446763,-4000.0,0.00017534,2]
[401968683,1768427446772,-4500.0,0.00017656,2]
[401968684,1768427446783,-2699.34641428,0.00017656,2]
[401968685,1768427446793,-4500.0,0.00017656,2]
[401968686,1768427446803,-4500.0,0.00017656,2]
[401968687,1768427446813,-4500.0,0.00017656,2]
[401968688,1768427446823,-400.30202268,0.00017842,2]
[401968689,1768427446832,-2700.0,0.00018056,2]
[401968690,1768427446842,-151.0,0.00018082,2]
[401968691,1768427446851,-151.0,0.00018082,2]
[401968692,1768427446860,-151.0,0.00018082,2]
[401968693,1768427446870,-249.391796,0.00018082,2]
[401968694,1768427446880,-145606.394164,0.00018082,7]
[401968695,1768427446889,-4500.0,0.00018082,2]
[401968696,1768427446899,-4500.0,0.00018082,2]
[401968697,1768427446908,-4500.0,0.00018082,2]
[401968698,1768427446918,-1041.66666667,0.00018105,2]
[401968699,1768427446928,-5000.0,0.00018204,2]
[401968700,1768427446938,-5000.0,0.00018204,2]
[401968701,1768427446948,-5000.0,0.00018204,2]
[401968702,1768427446957,-5000.0,0.00018204,2]
[401968703,1768427446967,-1000.0,0.00018261,2]
[401968704,1768427446976,-244.0,0.00018261,2]
[401968705,1768427446986,-408.368431,0.00018261,7]
[401968706,1768427446996,-626.62059624,0.0001829,2]
[401968707,1768427447005,-6621.22891406,0.00018298,2]
[401968708,1768427447016,-3200.0,0.00018356,2]
[401968709,1768427447026,-3000.0,0.00018604,2]
[401968710,1768427447036,-151.0,0.0001863,2]
[401968711,1768427447045,-795.987765,0.0001863,2]
[401968712,1768427447054,-795.987765,0.0001863,2]
[401968713,1768427447065,-795.987765,0.0001863,2]
[401968714,1768427447074,-795.987765,0.0001863,2]
[401968715,1768427447083,-519.150041,0.0001863,7]
[401968716,1768427447095,-38855.299543,0.0001863,7]
[401968717,1768427447106,-600.0,0.0001863,2]
[401968718,1768427447115,-5000.0,0.0001863,2]
[401968719,1768427447124,-5000.0,0.0001863,2]
[401968720,1768427447135,-5000.0,0.0001863,2]
[401968721,1768427447145,-714.6,0.00018677,2]
[401968722,1768427447155,-1020.921076,0.00018752,7]
[401968723,1768427447164,-3588.14205975,0.00018752,2]
[401968724,1768427447173,-5500.0,0.00018752,2]
[401968725,1768427447184,-5500.0,0.00018752,2]
[401968726,1768427447193,-5500.0,0.00018752,2]
[401968727,1768427447203,-5000.0,0.00018863,2]
[401968728,1768427447212,-303.10001603,0.000189,2]
[401968729,1768427447222,-303.10001603,0.000189,2]
[401968730,1768427447231,-303.10001603,0.00019089,2]
[401968731,1768427447239,-303.10001603,0.00019089,2]
[401968732,1768427447249,-32485.491542,0.00019091,7]
[401968733,1768427447258,-24267.73236,0.00019091,7]
[401968734,1768427447267,-4872.823731,0.00019091,7]
[401968735,1768427447276,-3300.0,0.00019152,2]
[401968736,1768427447285,-180.72597661,0.00019178,2]
[401968737,1768427447295,-151.0,0.00019178,2]
[401968738,1768427447304,-683.587352,0.00019178,2]
[401968739,1768427447314,-683.587352,0.00019178,2]
[401968740,1768427447324,-683.587352,0.00019178,2]
[401968741,1768427447334,-683.587352,0.00019178,2]
[401968742,1768427447344,-5500.0,0.00019178,2]
[401968743,1768427447353,-5500.0,0.00019178,2]
[401968744,1768427447363,-5500.0,0.00019178,2]
[401968745,1768427447373,-3915.7,0.000192,2]
[401968746,1768427447384,-223.89,0.000192,2]
[401968747,1768427447395,-196.5,0.000192,2]
[401968748,1768427447404,-167.77,0.000192,2]
[401968749,1768427447414,-29614.9,0.000192,2]
[401968750,1768427447423,-151.0,0.000192,2]
[401968751,1768427447433,-151.0,0.000192,2]
[401968752,1768427447442,-151.0,0.000192,2]
[401968753,1768427447451,-151.0,0.000192,2]
[401968754,1768427447462,-186.591978,0.000192,2]
[401968755,1768427447472,-186.591978,0.000192,2]
[401968756,1768427447483,-186.591978,0.000192,2]
[401968757,1768427447495,-186.591978,0.000192,2]
[401968758,1768427447504,-2953.11393828,0.00019211,2]
[401968759,1768427447514,-2258.0,0.00019226,2]
[401968760,1768427447525,-303.10001603,0.00019278,2]
[401968761,1768427447536,-303.10001603,0.00019278,2]
[401968762,1768427447545,-683.587352,0.000193,2]
[401968763,1768427447555,-683.587352,0.000193,2]
[401968764,1768427447564,-683.587352,0.000193,2]
[401968765,1768427447574,-683.587352,0.000193,2]
[401968766,1768427447583,-4040.44472477,0.000193,2]
[401968767,1768427447593,-6000.0,0.000193,2]
[401968768,1768427447602,-6000.0,0.000193,2]
[401968769,1768427447612,-183.58,0.00019434,2]
[401968770,1768427447623,-307.61092211,0.00019452,2]
[401968771,1768427447636,-303.10001603,0.00019467,2]
[401968772,1768427447645,-303.10001603,0.00019467,2]
[401968773,1768427447655,-2953.11393828,0.00019483,2]
[401968774,1768427447664,-4499.1178549,0.00019603,2]
[401968775,1768427447674,-151.0,0.00019603,2]
[401968776,1768427447684,-151.0,0.00019603,2]
[401968777,1768427447693,-151.0,0.00019603,2]
[401968778,1768427447703,-303.10001603,0.00019656,2]
[401968779,1768427447714,-303.10001603,0.00019656,2]
[401968780,1768427447724,-156.20051056,0.000197,2]
[401968781,1768427447735,-800.0,0.00019726,2]
[401968782,1768427447744,-250.0,0.00019726,2]
[401968783,1768427447753,-6000.0,0.00019726,2]
[401968784,1768427447763,-6000.0,0.00019726,2]
[401968785,1768427447772,-6000.0,0.00019726,2]
[401968786,1768427447782,-250.0,0.00019726,2]
[401968787,1768427447791,-2953.11393828,0.00019819,2]
[401968788,1768427447800,-454.65002405,0.00019845,4]
[401968789,1768427447810,-454.65002405,0.00019845,4]
[401968790,1768427447820,-6500.0,0.00019848,2]
[401968791,1768427447830,-6500.0,0.00019848,2]
[401968792,1768427447839,-10945.40487951,0.00019851,2]
[401968793,1768427447848,-160.35823449,0.00019884,2]
[401968794,1768427447858,-714.6,0.00019919,2]
[401968795,1768427447866,-9661.0,0.0002,2]
[401968796,1768427447875,-402.28551192,0.0002,2]
[401968797,1768427447886,-300.0,0.0002,2]
[401968798,1768427447895,-151.55000802,0.0002,2]
[401968799,1768427447904,-454.65002405,0.00020034,4]
[401968800,1768427447914,-454.65002405,0.00020034,4]
[401968801,1768427447923,-1000.0,0.00020087,2]
[401968802,1768427447932,-492.0,0.00020087,2]
[401968803,1768427447942,-2953.11393828,0.000201,2]
[401968804,1768427447951,-454.65002405,0.00020223,4]
[401968805,1768427447960,-454.65002405,0.00020223,4]
[401968806,1768427447970,-200.91058964,0.00020274,2]
[401968807,1768427447980,-4402.72600724,0.00020274,2]
[401968808,1768427447990,-6500.0,0.00020274,2]
[401968809,1768427447999,-3946.58201638,0.00020274,2]
[401968810,1768427448009,-350.0,0.00020274,2]
[401968811,1768427448022,-151.0,0.00020274,2]
[401968812,1768427448032,-151.0,0.00020274,2]
[401968813,1768427448041,-151.0,0.00020274,2]
[401968814,1768427448051,-692.19717026,0.0002029,2]
[401968815,1768427448061,-152.96957802,0.00020318,2]
[401968816,1768427448071,-5683.87260271,0.00020396,2]
[401968817,1768427448081,-3073.24025849,0.00020396,2]
[401968818,1768427448093,-151.0,0.00020396,2]
[401968819,1768427448103,-454.65002405,0.00020412,4]
[401968820,1768427448112,-454.65002405,0.00020412,4]
[401968821,1768427448122,-2953.11393828,0.00020416,2]
[401968822,1768427448131,-454.65002399,0.00020601,4]
[401968823,1768427448256,-454.65002405,0.00020601,4]
[401968824,1768427448288,-6621.22891406,0.00020609,2]
[401968825,1768427448298,-29614.9,0.000207,2]
[401968826,1768427448308,-2953.11393833,0.00020761,2]
[401968827,1768427448317,-795.987765,0.00020795,2]
[401968828,1768427448328,-795.987765,0.00020795,2]
[401968829,1768427448338,-795.987765,0.00020795,2]
[401968830,1768427448347,-795.987765,0.00020795,2]
[401968831,1768427448357,-1000.0,0.00020822,2]
[401968832,1768427448367,-7000.0,0.00020822,2]
[401968833,1768427448377,-450.0,0.00020822,2]
[401968834,1768427448387,-10647.19402115,0.00021,2]
[401968835,1768427448397,-3162.0,0.00021129,2]
[401968836,1768427448407,-714.6,0.0002116,2]
[401968837,1768427448418,-7500.0,0.0002137,2]
[401968838,1768427448427,-550.0,0.0002137,2]
[401968839,1768427448437,-151.0,0.0002137,2]
[401968840,1768427448448,-183.58,0.00021467,2]
[401968841,1768427448460,-3915.7,0.000218,2]
[401968842,1768427448470,-223.89,0.000218,2]
[401968843,1768427448480,-196.5,0.000218,2]
[401968844,1768427448490,-4499.1178549,0.00021885,2]
[401968845,1768427448501,-235.563767,0.00021918,2]
[401968846,1768427448511,-151.0,0.00021918,2]
[401968847,1768427448521,-151.0,0.00021918,2]
[401968848,1768427448531,-151.0,0.00021918,2]
[401968849,1768427448541,-151.0,0.00021918,2]
[401968850,1768427448553,-151.0,0.00021918,2]
[401968851,1768427448563,-151.0,0.00021918,2]
[401968852,1768427448573,-256.419817,0.00021918,2]
[401968853,1768427448583,-151.0,0.00021918,2]
[401968854,1768427448593,-151.0,0.00021918,2]
[401968855,1768427448603,-151.0,0.00021918,2]
[401968856,1768427448614,-151.0,0.00021918,2]
[401968857,1768427448623,-151.0,0.00021918,2]
[401968858,1768427448634,-151.0,0.00021918,2]
[401968859,1768427448644,-151.0,0.00021918,2]
[401968860,1768427448653,-151.0,0.00021918,2]
[401968861,1768427448662,-151.0,0.00021918,2]
[401968862,1768427448671,-151.0,0.00021918,2]
[401968863,1768427448680,-151.0,0.00021918,2]
[401968864,1768427448690,-191.596972,0.00021918,2]
[401968865,1768427448701,-191.596972,0.00021918,2]
[401968866,1768427448711,-191.596972,0.00021918,2]
[401968867,1768427448722,-191.596972,0.00021918,2]
[401968868,1768427448733,-191.596972,0.00021918,2]
[401968869,1768427448747,-191.596972,0.00021918,2]
[401968870,1768427448757,-191.596972,0.00021918,2]
[401968871,1768427448767,-191.596972,0.00021918,2]
[401968872,1768427448777,-151.0,0.00021918,2]
[401968873,1768427448786,-910.867725,0.00021918,2]
[401968874,1768427448796,-910.867725,0.00021918,2]
[401968875,1768427448805,-910.867725,0.00021918,2]
[401968876,1768427448815,-910.867725,0.00021918,2]
[401968877,1768427448824,-910.867725,0.00021918,2]
[401968878,1768427448834,-910.867725,0.00021918,2]
[401968879,1768427448844,-910.867725,0.00021918,2]
[401968880,1768427448854,-910.867725,0.00021918,2]
[401968881,1768427448863,-151.0,0.00021918,2]
[401968882,1768427448873,-151.0,0.00021918,2]
[401968883,1768427448882,-151.0,0.00021918,2]
[401968884,1768427448892,-151.0,0.00021918,2]
[401968885,1768427448902,-151.0,0.00021918,2]
[401968886,1768427448912,-151.0,0.00021918,2]
[401968887,1768427448922,-151.0,0.00021918,2]
[401968888,1768427448932,-206.655593,0.00021918,2]
[401968889,1768427448944,-206.655593,0.00021918,2]
[401968890,1768427448954,-206.655593,0.00021918,2]
[401968891,1768427448964,-206.655593,0.00021918,2]
[401968892,1768427448974,-206.655593,0.00021918,2]
[401968893,1768427448983,-206.655593,0.00021918,2]
[401968894,1768427448993,-206.655593,0.00021918,2]
[401968895,1768427449003,-206.655593,0.00021918,2]
[401968896,1768427449013,-206.655593,0.00021918,2]
[401968897,1768427449026,-206.655593,0.00021918,2]
[401968898,1768427449035,-206.655593,0.00021918,2]
[401968899,1768427449047,-206.655593,0.00021918,2]
[401968900,1768427449058,-151.0,0.00021918,2]
[401968901,1768427449069,-151.0,0.00021918,2]
[401968902,1768427449079,-151.0,0.00021918,2]
[401968903,1768427449090,-151.0,0.00021918,2]
[401968904,1768427449100,-151.0,0.00021918,2]
[401968905,1768427449111,-151.0,0.00021918,2]
[401968906,1768427449121,-151.0,0.00021918,2]
[401968907,1768427449131,-151.0,0.00021918,2]
[401968908,1768427449143,-276.465874,0.00021918,2]
[401968909,1768427449153,-285.638493,0.00021918,2]
[401968910,1768427449162,-282.150442,0.00021918,2]
[401968911,1768427449171,-282.150442,0.00021918,2]
[401968912,1768427449181,-282.150442,0.00021918,2]
[401968913,1768427449191,-282.150442,0.00021918,2]
[401968914,1768427449201,-282.150442,0.00021918,2]
[401968915,1768427449211,-151.0,0.00021918,2]
[401968916,1768427449221,-282.150442,0.00021918,2]
[401968917,1768427449231,-151.0,0.00021918,2]
[401968918,1768427449241,-282.150442,0.00021918,2]
[401968919,1768427449250,-282.150442,0.00021918,2]
[401968920,1768427449262,-282.150442,0.00021918,2]
[401968921,1768427449273,-282.150442,0.00021918,2]
[401968922,1768427449282,-282.150442,0.00021918,2]
[401968923,1768427449292,-282.150442,0.00021918,2]
[401968924,1768427449301,-151.0,0.00021918,2]
[401968925,1768427449313,-151.0,0.00021918,2]
[401968926,1768427449324,-151.0,0.00021918,2]
[401968927,1768427449334,-151.0,0.00021918,2]
[401968928,1768427449344,-151.0,0.00021918,2]
[401968929,1768427449354,-151.0,0.00021918,2]
[401968930,1768427449364,-151.0,0.00021918,2]
[401968931,1768427449374,-151.0,0.00021918,2]
[401968932,1768427449384,-151.0,0.00021918,2]
[401968933,1768427449394,-151.0,0.00021918,2]
[401968934,1768427449403,-151.0,0.00021918,2]
[401968935,1768427449413,-151.0,0.00021918,2]
[401968936,1768427449423,-151.0,0.00021918,2]
[401968937,1768427449432,-151.0,0.00021918,2]
[401968938,1768427449441,-151.0,0.00021918,2]
[401968939,1768427449451,-151.0,0.00021918,2]
[401968940,1768427449462,-151.0,0.00021918,2]
[401968941,1768427449473,-167.014609,0.00021918,2]
[401968942,1768427449482,-222.382788,0.00021918,2]
[401968943,1768427449493,-151.0,0.00021918,2]
[401968944,1768427449502,-151.0,0.00021918,2]
[401968945,1768427449513,-158.985841,0.00021918,2]
[401968946,1768427449523,-152.430447,0.00021918,2]
[401968947,1768427449534,-207.237772,0.00021918,2]
[401968948,1768427449544,-207.237772,0.00021918,2]
[401968949,1768427449553,-207.237772,0.00021918,2]
[401968950,1768427449563,-207.237772,0.00021918,2]
[401968951,1768427449573,-207.237772,0.00021918,2]
[401968952,1768427449584,-207.237772,0.00021918,2]
[401968953,1768427449593,-207.237772,0.00021918,2]
[401968954,1768427449603,-207.237772,0.00021918,2]
[401968955,1768427449613,-207.237772,0.00021918,2]
[401968956,1768427449622,-207.237772,0.00021918,2]
[401968957,1768427449632,-207.237772,0.00021918,2]
[401968958,1768427449641,-207.237772,0.00021918,2]
[401968959,1768427449652,-293.503999,0.00021918,2]
[401968960,1768427449662,-293.503999,0.00021918,2]
[401968961,1768427449673,-293.503999,0.00021918,2]
[401968962,1768427449682,-293.503999,0.00021918,2]
[401968963,1768427449693,-293.503999,0.00021918,2]
[401968964,1768427449702,-293.503999,0.00021918,2]
[401968965,1768427449713,-293.503999,0.00021918,2]
[401968966,1768427449722,-293.503999,0.00021918,2]
[401968967,1768427449731,-293.503999,0.00021918,2]
[401968968,1768427449740,-293.503999,0.00021918,2]
[401968969,1768427449750,-293.503999,0.00021918,2]
[401968970,1768427449760,-293.503999,0.00021918,2]
[401968971,1768427449769,-151.0,0.00021918,2]
[401968972,1768427449779,-151.0,0.00021918,2]
[401968973,1768427449789,-582.913993,0.00021918,2]
[401968974,1768427449798,-582.913993,0.00021918,2]
[401968975,1768427449807,-582.913993,0.00021918,2]
[401968976,1768427449817,-582.913993,0.00021918,2]
[401968977,1768427449826,-582.913993,0.00021918,2]
[401968978,1768427449835,-582.913993,0.00021918,2]
[401968979,1768427449844,-582.913993,0.00021918,2]
[401968980,1768427449854,-582.913993,0.00021918,2]
[401968981,1768427449863,-582.913993,0.00021918,2]
[401968982,1768427449873,-582.913993,0.00021918,2]
[401968983,1768427449882,-582.913993,0.00021918,2]
[401968984,1768427449892,-582.913993,0.00021918,2]
[401968985,1768427449902,-151.0,0.00021918,2]
[401968986,1768427449913,-187.824189,0.00021918,2]
[401968987,1768427449923,-151.0,0.00021918,2]
[401968988,1768427449932,-171.590908,0.00021918,2]
[401968989,1768427449942,-275.55471384,0.00021918,2]
[401968990,1768427449951,-151.0,0.00021918,2]
[401968991,1768427449961,-151.0,0.00021918,2]
[401968992,1768427449970,-151.0,0.00021918,2]
[401968993,1768427449979,-151.0,0.00021918,2]
[401968994,1768427449989,-151.0,0.00021918,2]
[401968995,1768427449998,-151.0,0.00021918,2]
[401968996,1768427450009,-151.0,0.00021918,2]
[401968997,1768427450021,-151.0,0.00021918,2]
[401968998,1768427450031,-151.0,0.00021918,2]
[401968999,1768427450040,-151.0,0.00021918,2]
[401969000,1768427450050,-151.0,0.00021918,2]
[401969001,1768427450060,-847.432412,0.00021918,2]
[401969002,1768427450069,-847.432412,0.00021918,2]
[401969003,1768427450079,-847.432412,0.00021918,2]
[401969004,1768427450089,-847.432412,0.00021918,2]
[401969005,1768427450099,-847.432412,0.00021918,2]
[401969006,1768427450108,-847.432412,0.00021918,2]
[401969007,1768427450117,-847.432412,0.00021918,2]
[401969008,1768427450127,-847.432412,0.00021918,2]
[401969009,1768427450137,-151.0,0.00021918,2]
[401969010,1768427450146,-151.0,0.00021918,2]
[401969011,1768427450156,-1770.408967,0.00021918,2]
[401969012,1768427450166,-1770.408967,0.00021918,2]
[401969013,1768427450175,-1770.408967,0.00021918,2]
[401969014,1768427450185,-1770.408967,0.00021918,2]
[401969015,1768427450197,-1770.408967,0.00021918,2]
[401969016,1768427450207,-1770.408967,0.00021918,2]
[401969017,1768427450216,-1770.408967,0.00021918,2]
[401969018,1768427450225,-1770.408967,0.00021918,2]
[401969019,1768427450235,-151.0,0.00021918,2]
[401969020,1768427450244,-151.0,0.00021918,2]
[401969021,1768427450254,-263.265987,0.00021918,2]
[401969022,1768427450263,-263.265987,0.00021918,2]
[401969023,1768427450272,-263.265987,0.00021918,2]
[401969024,1768427450281,-263.265987,0.00021918,2]
[401969025,1768427450290,-151.0,0.00021918,2]
[401969026,1768427450300,-151.0,0.00021918,2]
[401969027,1768427450309,-263.265987,0.00021918,2]
[401969028,1768427450318,-263.265987,0.00021918,2]
[401969029,1768427450328,-151.0,0.00021918,2]
[401969030,1768427450337,-151.0,0.00021918,2]
[401969031,1768427450346,-263.265987,0.00021918,2]
[401969032,1768427450356,-263.265987,0.00021918,2]
[401969033,1768427450365,-151.0,0.00021918,2]
[401969034,1768427450374,-215.302666,0.00021918,2]
[401969035,1768427450383,-151.0,0.00021918,2]
[401969036,1768427450392,-151.0,0.00021918,2]
[401969037,1768427450401,-151.0,0.00021918,2]
[401969038,1768427450410,-151.0,0.00021918,2]
[401969039,1768427450419,-225.938304,0.00021918,2]
[401969040,1768427450429,-151.0,0.00021918,2]
[401969041,1768427450438,-151.0,0.00021918,2]
[401969042,1768427450447,-151.0,0.00021918,2]
[401969043,1768427450456,-151.0,0.00021918,2]
[401969044,1768427450465,-151.0,0.00021918,2]
[401969045,1768427450474,-151.0,0.00021918,2]
[401969046,1768427450483,-151.0,0.00021918,2]
[401969047,1768427450492,-282.093229,0.00021918,2]
[401969048,1768427450502,-151.0,0.00021918,2]
[401969049,1768427450511,-151.0,0.00021918,2]
[401969050,1768427450520,-151.0,0.00021918,2]
[401969051,1768427450529,-151.0,0.00021918,2]
[401969052,1768427450539,-151.0,0.00021918,2]
[401969053,1768427450549,-151.0,0.00021918,2]
[401969054,1768427450559,-186.701041,0.00021918,2]
[401969055,1768427450570,-240.755518,0.00021918,2]
[401969056,1768427450581,-151.0,0.00021918,2]
[401969057,1768427450593,-171.320259,0.00021918,2]
[401969058,1768427450604,-593.168376,0.00021918,2]
[401969059,1768427450615,-593.168376,0.00021918,2]
[401969060,1768427450628,-593.168376,0.00021918,2]
[401969061,1768427450637,-593.168376,0.00021918,2]
[401969062,1768427450647,-593.168376,0.00021918,2]
[401969063,1768427450657,-593.168376,0.00021918,2]
[401969064,1768427450667,-151.0,0.00021918,2]
[401969065,1768427450677,-151.0,0.00021918,2]
[401969066,1768427450686,-285.163634,0.00021918,2]
[401969067,1768427450696,-151.0,0.00021918,2]
[401969068,1768427450705,-593.168376,0.00021918,2]
[401969069,1768427450715,-151.0,0.00021918,2]
[401969070,1768427450761,-593.168376,0.00021918,2]
[401969071,1768427450771,-151.0,0.00021918,2]
[401969072,1768427450780,-151.0,0.00021918,2]
[401969073,1768427450789,-151.0,0.00021918,2]
[401969074,1768427450799,-155.824864,0.00021918,2]
[401969075,1768427450808,-151.0,0.00021918,2]
[401969076,1768427450817,-151.0,0.00021918,2]
[401969077,1768427450826,-151.0,0.00021918,2]
[401969078,1768427450835,-151.0,0.00021918,2]
[401969079,1768427450844,-151.0,0.00021918,2]
[401969080,1768427450853,-151.0,0.00021918,2]
[401969081,1768427450862,-151.0,0.00021918,2]
[401969082,1768427450871,-151.0,0.00021918,2]
[401969083,1768427450880,-1200.0,0.00021918,2]
[401969084,1768427450890,-8000.0,0.00021918,2]
[401969085,1768427450899,-650.0,0.00021918,2]
[401969086,1768427450908,-151.0,0.00021918,2]
[401969087,1768427450917,-151.0,0.00021918,2]
[401969088,1768427450926,-151.0,0.00021918,2]
[401969089,1768427450935,-151.0,0.00021918,2]
[401969090,1768427450944,-151.0,0.00021918,2]
[401969091,1768427450953,-151.0,0.00021918,2]
[401969092,1768427450963,-151.0,0.00021918,2]
[401969093,1768427450972,-151.0,0.00021918,2]
[401969094,1768427450981,-186.591978,0.00021918,2]
[401969095,1768427450990,-186.591978,0.00021918,2]
[401969096,1768427451000,-186.591978,0.00021918,2]
[401969097,1768427451010,-186.591978,0.00021918,2]
[401969098,1768427451022,-593.168376,0.00021918,2]
[401969099,1768427451031,-593.168376,0.00021918,2]
[401969100,1768427451040,-593.168376,0.00021918,2]
[401969101,1768427451050,-593.168376,0.00021918,2]
[401969102,1768427451060,-231.464097,0.00021918,2]
[401969103,1768427451070,-151.0,0.00021918,2]
[401969104,1768427451079,-151.0,0.00021918,2]
[401969105,1768427451089,-151.0,0.00021918,2]
[401969106,1768427451099,-2322.78,0.00022,7]
[401969107,1768427451109,-1000.0,0.00022095,10]
[401969108,1768427451118,-791.0,0.00022095,10]
[401969109,1768427451127,-29614.9,0.000221,2]
[401969110,1768427451136,-151.0,0.000221,2]
[401969111,1768427451145,-151.0,0.000221,2]
[401969112,1768427451155,-151.0,0.000221,2]
[401969113,1768427451165,-151.0,0.000221,2]
[401969114,1768427451174,-224.869292,0.000221,2]
[401969115,1768427451183,-847.432412,0.000221,2]
[401969116,1768427451193,-847.432412,0.000221,2]
[401969117,1768427451202,-847.432412,0.000221,2]
[401969118,1768427451212,-847.432412,0.000221,2]
[401969119,1768427451222,-683.587352,0.000221,2]
[401969120,1768427451231,-683.587352,0.000221,2]
[401969121,1768427451241,-1770.408967,0.000221,2]
[401969122,1768427451251,-683.587352,0.000221,2]
[401969123,1768427451260,-1770.408967,0.000221,2]
[401969124,1768427451269,-683.587352,0.000221,2]
[401969125,1768427451279,-1770.408967,0.000221,2]
[401969126,1768427451288,-1770.408967,0.000221,2]